bitfinex-derivatives/quotes_SOLF0:USTF0_20251229
["timestamp","ask_amount","ask_price","bid_price","bid_amount"]
[1767028303777,28.99,123.53,123.46,27.76824775]
[1767028303980,28.99,123.53,123.48,27.71]
[1767028304980,0.05964184,123.52,123.49,0.05310889]
[1767028306988,28.69964184,123.52,123.49,0.00310889]
[1767028338005,26.87,123.56,123.49,27.59310889]
[1767028338207,26.87,123.55,123.49,27.59310889]
[1767028339201,0.05811233,123.53,123.49,27.59310889]
[1767028342813,26.87,123.54,123.5,27.59]
[1767028343903,0.05309455,123.53,123.5,27.59]
[1767028344309,0.05309455,123.53,123.49,0.00310889]
[1767028345016,29.64742475,123.53,123.49,0.00310889]
[1767028345210,26.92309455,123.53,123.49,0.00310889]
[1767028352417,26.87,123.55,123.49,0.00310889]
[1767028353620,0.05933202,123.53,123.5,27.59]
[1767028356820,26.87,123.55,123.5,34.8842]
[1767028357816,0.06118796,123.54,123.5,34.8842]
[1767028365228,26.93118796,123.54,123.49,95.70310889]
[1767028366228,26.93118796,123.54,123.49,124.10310889]
[1767028366517,26.93118796,123.54,123.49,95.70310889]
[1767028366719,26.93118796,123.54,123.49,0.00310889]
[1767028366918,31.18304992,123.54,123.49,0.00310889]
[1767028367326,29.31,123.52,123.49,0.00310889]
[1767028377542,29.37118796,123.54,123.49,0.00310889]
[1767028377744,0.06118796,123.54,123.49,0.00310889]
[1767028378148,29.37118796,123.54,123.49,0.00310889]
[1767028378749,29.37118796,123.54,123.49,28.40310889]
[1767028388049,29.37118796,123.54,123.49,35.69820889]
[1767028389552,0.06118796,123.54,123.5,33.2543]
[1767028389758,26.26,123.56,123.51,25.96]
[1767028390759,0.05279017,123.55,123.52,0.05317962]
[1767028391554,26.31279017,123.55,123.52,0.05317962]
[1767028408572,26.9,123.57,123.52,27.02317962]
[1767028409671,0.06135286,123.56,123.52,27.02317962]
[1767028426184,24.89135286,123.56,123.52,0.05317962]
[1767028426381,27.61145543,123.56,123.48,25.66]
[1767028426587,27.55010257,123.56,123.48,25.66]
[1767028427489,0.05776495,123.53,123.51,0.05269313]
[1767028447100,0.05776495,123.53,123.51,25.01269313]
[1767028447302,25.89,123.56,123.51,25.01269313]
[1767028447501,25.89,123.56,123.51,0.05269313]
[1767028448198,25.94921118,123.55,123.51,0.05269313]
[1767028453112,28.66931375,123.55,123.51,0.05269313]
[1767028459304,25.46,123.53,123.47,24.94]
[1767028459520,28.18010257,123.53,123.45,24.94]
[1767028460426,0.06147138,123.5,123.48,0.05534702]
[1767028463728,25.52147138,123.5,123.48,0.05534702]
[1767028464921,25.52147138,123.5,123.43,26.3496488]
[1767028465619,25.46,123.49,123.43,24.94]
[1767028465822,0.05757947,123.47,123.45,0.05469866]
[1767028467629,25.51757947,123.47,123.45,0.05469866]
[1767028469530,25.51757947,123.47,123.45,0.00469866]
[1767028474334,28.23768204,123.47,123.41,24.94]
[1767028474633,28.23768204,123.47,123.4,95.72]
[1767028474831,28.23768204,123.47,123.39,24.94]
[1767028475029,28.18010257,123.47,123.39,24.94]
[1767028475230,25.46,123.45,123.38,27.66010257]
[1767028475542,25.51750355,123.44,123.38,24.94]
[1767028476536,25.51750355,123.44,123.4,0.05659178]
[1767028500456,113.58770355,123.44,123.32,35.5999109]
[1767028500751,23.65,123.42,123.32,120.19]
[1767028500954,23.65,123.42,123.33,24.41]
[1767028501350,23.70732195,123.39,123.36,0.05604538]
[1767028502662,23.70732195,123.39,123.32,95.78]
[1767028503158,23.70732195,123.39,123.3,24.41]
[1767028503358,23.65,123.39,123.31,24.41]
[1767028503748,0.05944745,123.36,123.34,0.05621357]
[1767028503958,7.2998,123.42,123.34,24.46621357]
[1767028504156,23.65,123.41,123.34,24.41]
[1767028505050,0.05272379,123.39,123.36,0.05499294]
[1767028511063,23.65,123.42,123.36,24.46499294]
[1767028511363,23.65,123.42,123.36,24.41]
[1767028511554,23.65,123.42,123.36,31.7126]
[1767028511849,23.65,123.42,123.35,95.8]
[1767028512050,0.05803366,123.4,123.37,0.06209238]
[1767028512253,0.05803366,123.4,123.37,0.05622789]
[1767028519559,0.05803366,123.4,123.37,24.91622789]
[1767028521267,23.45803366,123.4,123.37,0.05622789]
[1767028521773,23.45803366,123.4,123.35,95.8]
[1767028522064,7.35853366,123.4,123.35,95.8]
[1767028522268,23.4,123.39,123.31,24.86]
[1767028522658,0.05976885,123.36,123.34,0.05498952]
[1767028522864,0.05104615,123.36,123.34,0.05498952]
[1767028530367,0.00104615,123.36,123.34,24.91498952]
[1767028531367,0.00104615,123.36,123.34,0.05498952]
[1767028552495,23.52104615,123.36,123.34,0.00498952]
[1767028557405,0.00104615,123.36,123.34,0.00498952]
[1767028559312,0.00104615,123.36,123.34,24.00498952]
[1767028561600,0.00104615,123.36,123.34,0.00498952]
[1767028565809,0.00104615,123.36,123.34,24.00498952]
[1767028566516,0.00104615,123.36,123.35,24.0]
[1767028566820,0.00104615,123.36,123.35,95.84]
[1767028567719,0.00104615,123.36,123.35,103.1434]
[1767028572723,0.00104615,123.36,123.35,104.7634]
[1767028573428,7.298,123.45,123.35,97.46]
[1767028573722,23.65,123.46,123.37,24.0]
[1767028574411,0.05830009,123.43,123.4,24.06021724]
[1767028576920,32.4662,123.48,123.4,24.06021724]
[1767028577123,25.17,123.51,123.4,24.0]
[1767028577722,25.17,123.51,123.42,24.4]
[1767028578028,0.05709954,123.48,123.45,0.05513904]
[1767028589836,25.22709954,123.48,123.45,0.05513904]
[1767028590636,32.52289954,123.48,123.42,24.4]
[1767028590837,25.17,123.47,123.42,24.4]
[1767028591638,25.17,123.47,123.43,0.05559414]
[1767028612259,0.05709954,123.48,123.43,25.11559414]
[1767028613548,24.01709954,123.48,123.43,25.11559414]
[1767028621164,31.2538,123.52,123.45,23.3]
[1767028621354,123.43898577,123.56,123.45,23.3]
[1767028621554,23.96,123.54,123.46,23.3]
[1767028622053,23.96,123.52,123.46,23.3]
[1767028622257,0.05595416,123.5,123.48,0.0553599]
[1767028622658,23.96,123.53,123.48,0.0553599]
[1767028623855,0.055247,123.52,123.48,0.0553599]
[1767028627567,24.015247,123.52,123.48,23.3553599]
[1767028630364,24.015247,123.52,123.44,7.0]
[1767028630569,141.74,123.51,123.38,23.3]
[1767028630769,255.2078,123.51,123.38,23.3]
[1767028630974,113.4727,123.5,123.4,23.3]
[1767028631277,7.2958,123.48,123.4,23.3]
[1767028631475,113.4678,123.51,123.43,23.36066598]
[1767028631679,7.2952,123.49,123.43,23.3]
[1767028632467,0.05829109,123.47,123.45,0.05868348]
[1767028633373,7.2952,123.49,123.45,0.05868348]
[1767028633970,7.2943,123.51,123.45,0.05868348]
[1767028634167,7.2943,123.51,123.45,23.35868348]
[1767028634370,0.05926253,123.49,123.45,23.35868348]
[1767028637072,113.4139,123.57,123.45,23.35868348]
[1767028637375,113.4139,123.57,123.45,23.3]
[1767028637583,113.4139,123.57,123.47,22.81]
[1767028638079,0.05176405,123.53,123.51,0.0611017]
[1767028648987,0.05176405,123.53,123.51,22.8711017]
[1767028649876,0.05176405,123.53,123.51,0.0611017]
[1767028673408,0.05176405,123.53,123.51,3.2811017]
[1767028676807,0.05176405,123.53,123.52,1.54567376]
[1767028689920,0.05176405,123.53,123.52,97.24567376]
[1767028691923,0.05176405,123.53,123.52,104.53907376]
[1767028696329,10.02268577,123.68,123.55,3.39]
[1767028696628,113.2769,123.72,123.58,3.39]
[1767028696828,113.2769,123.72,123.6,3.39]
[1767028697220,0.05611196,123.67,123.6,3.39]
[1767028697727,0.05611196,123.67,123.62,0.22405841]
[1767028698334,0.05611196,123.67,123.63,0.05320788]
[1767028701731,0.05611196,123.67,123.63,3.44320788]
[1767028701931,0.05611196,123.67,123.64,95.66]
[1767028702330,0.05611196,123.67,123.63,3.44320788]
[1767028702535,0.05611196,123.67,123.64,95.66]
[1767028703328,113.26,123.74,123.65,3.39]
[1767028703526,113.26,123.74,123.65,99.03]
[1767028704229,0.05347925,123.71,123.68,0.06022485]
[1767028710748,8.95587925,123.71,123.68,0.00022485]
[1767028712540,7.2828,123.7,123.65,95.64]
[1767028713745,7.2828,123.7,123.66,0.06012955]
[1767028720547,113.33487925,123.71,123.66,0.00012955]
[1767028720740,113.33487925,123.71,123.61,3.39]
[1767028720944,113.2814,123.71,123.61,3.39]
[1767028721551,7.2837,123.69,123.61,3.39]
[1767028721747,7.2837,123.69,123.65,0.05128983]
[1767028721748,0.0608687,123.67,123.65,0.05128983]
[1767028742563,0.0608687,123.67,123.63,3.39]
[1767028743661,0.0608687,123.67,123.64,0.05360786]
[1767028755590,0.0608687,123.67,123.62,3.32]
[1767028756290,7.3453687,123.67,123.62,3.32]
[1767028756696,7.3453687,123.67,123.63,3.37686055]
[1767028760992,0.0608687,123.67,123.63,3.37686055]
[1767028767301,113.3261,123.66,123.53,113.4397]
[1767028767598,6.14416049,123.65,123.53,209.0597]
[1767028767986,6.14416049,123.65,123.54,95.62]
[1767028768190,0.00174069,123.61,123.58,0.05349782]
[1767028768391,0.00174069,123.61,123.54,102.9119]
[1767028769192,0.00174069,123.61,123.57,3.32]
[1767028779706,0.00174069,123.61,123.59,3.32]
[1767028779909,0.00174069,123.61,123.59,3.38162422]
[1767028787608,0.00174069,123.61,123.6,98.89]
[1767028798226,0.00174069,123.61,123.59,0.06162422]
[1767028798525,0.00174069,123.61,123.59,3.37162422]
[1767028799018,0.00174069,123.61,123.59,0.06162422]
[1767028800223,0.00174069,123.61,123.59,3.37162422]
[1767028803327,0.00174069,123.61,123.59,0.06162422]
[1767028809545,0.00174069,123.61,123.59,3.37162422]
[1767028826954,7.2861,123.65,123.6,3.42]
[1767028827864,0.05367371,123.64,123.6,3.42]
[1767028829266,7.34007371,123.64,123.6,3.42]
[1767028831069,0.05367371,123.64,123.6,3.42]
[1767028832067,0.00367371,123.64,123.6,6.13716277]
[1767028832268,0.00367371,123.64,123.61,3.42]
[1767028847074,7.29007371,123.64,123.59,3.34162422]
[1767028848585,7.2869,123.63,123.59,3.34162422]
[1767028850986,113.34877371,123.64,123.55,3.28]
[1767028851183,6.30300469,123.63,123.56,3.28]
[1767028851980,0.0584677,123.61,123.58,0.05549139]
[1767028852582,7.3466677,123.61,123.58,0.05549139]
[1767028866486,0.0584677,123.61,123.58,3.24549139]
[1767028866792,10.02268577,123.67,123.58,3.24549139]
[1767028867093,113.3086,123.68,123.59,3.19]
[1767028867394,208.9086,123.68,123.59,3.19]
[1767028867795,0.05211212,123.65,123.62,0.05147714]
[1767028876506,0.05211212,123.65,123.62,3.47147714]
[1767028881403,0.00211212,123.65,123.62,3.47147714]
[1767028890827,7.2833,123.7,123.63,3.42]
[1767028891640,7.2833,123.7,123.64,3.42]
[1767028891932,0.05120125,123.68,123.66,0.05137792]
[1767028896936,0.05120125,123.68,123.63,3.42]
[1767028896937,7.33520125,123.68,123.63,3.42]
[1767028898032,7.33520125,123.68,123.64,0.05232331]
[1767028901534,7.33520125,123.68,123.64,3.47232331]
[1767028917755,7.33520125,123.68,123.64,0.05232331]
[1767028922849,2.71546312,123.66,123.6,15.0]
[1767028923056,2.71546312,123.64,123.58,3.2]
[1767028923358,7.2869,123.63,123.58,3.2]
[1767028923753,7.2869,123.63,123.56,3.2]
[1767028923953,0.05893584,123.61,123.58,0.05293896]
[1767028937472,7.34703584,123.61,123.58,0.05293896]
[1767028937668,0.05893584,123.61,123.54,6.06546312]
[1767028937874,0.05893584,123.61,123.55,3.35]
[1767028938674,0.05893584,123.61,123.58,3.35]
[1767028939262,2.71546312,123.64,123.58,3.35]
[1767028940175,0.05151582,123.62,123.6,0.05293682]
[1767028946983,123.29118577,123.73,123.61,3.35]
[1767028947187,2.71546312,123.71,123.63,3.35]
[1767028947982,0.05136557,123.68,123.66,0.05573245]
[1767028955381,0.00136557,123.68,123.66,3.40573245]
[1767028959786,0.00136557,123.68,123.66,0.05573245]
[1767028967707,7.28526557,123.68,123.64,3.35]
[1767028967907,0.00136557,123.68,123.64,3.35]
[1767028968210,0.00136557,123.68,123.61,3.22]
[1767028968513,7.2846,123.67,123.61,3.22]
[1767028968902,0.06119469,123.65,123.63,0.05259332]
[1767028969206,0.06119469,123.65,123.63,3.27259332]
[1767028969410,0.00119469,123.65,123.63,3.27259332]
[1767028978713,4.24342323,123.72,123.63,3.27259332]
[1767028978919,4.24342323,123.72,123.63,3.22]
[1767028979108,7.2828,123.7,123.64,3.33]
[1767028979614,0.05289446,123.68,123.66,0.05387386]
[1767028988935,7.33689446,123.68,123.66,0.05387386]
[1767028989223,0.05289446,123.68,123.62,3.33]
[1767028989421,7.2853,123.66,123.62,3.33]
[1767028989825,7.2858,123.65,123.62,3.33]
[1767028990226,7.34256495,123.65,123.62,3.38649249]
[1767028991017,7.34256495,123.65,123.62,0.05649249]
[1767028991330,7.2865,123.64,123.6,3.33]
[1767028992333,7.2865,123.64,123.61,0.06135418]
[1767028994225,4.24342323,123.64,123.55,7.291]
[1767028995123,7.2875,123.62,123.55,7.291]
[1767028995330,0.06170025,123.61,123.5,2.8185732]
[1767028995521,4.24342323,123.6,123.5,2.8185732]
[1767028995921,4.24342323,123.6,123.49,4.24342323]
[1767028996219,4.24342323,123.6,123.5,3.7]
[1767028996422,4.24342323,123.6,123.49,99.86342323]
[1767028996423,0.0522762,123.56,123.54,0.05824042]
[1767028997129,0.0022762,123.56,123.54,3.75824042]
[1767029005738,4.24342323,123.6,123.54,3.75824042]
[1767029006429,11.53212323,123.6,123.54,3.75824042]
[1767029006835,0.05359115,123.58,123.54,3.75824042]
[1767029010033,7.34349115,123.58,123.54,3.75824042]
[1767029010344,7.34349115,123.58,123.54,0.05824042]
[1767029011642,4.29701438,123.58,123.51,3.7]
[1767029011846,4.24342323,123.58,123.51,3.7]
[1767029012736,0.05112074,123.56,123.53,0.05848511]
[1767029013041,7.34232074,123.56,123.53,0.05848511]
[1767029013546,7.34232074,123.56,123.51,3.7]
[1767029014442,7.34232074,123.56,123.52,0.05707981]
[1767029015441,7.2916,123.55,123.52,0.05707981]
[1767029015648,4.29454397,123.56,123.52,0.05707981]
[1767029015947,4.29454397,123.56,123.49,3.7]
[1767029016452,7.2928,123.53,123.49,3.7]
[1767029016746,0.05352276,123.52,123.5,0.03002474]
[1767029016947,4.24342323,123.54,123.47,3.7]
[1767029017543,7.2936,123.52,123.47,3.7]
[1767029018050,0.05267123,123.51,123.47,3.7]
[1767029018351,7.34677123,123.51,123.47,3.7]
[1767029019951,0.00267123,123.51,123.47,3.7]
[1767029021051,0.00267123,123.51,123.48,0.05]
[1767029026562,0.00267123,123.51,123.48,3.58]
[1767029035662,0.00267123,123.51,123.48,0.05]
[1767029035663,2.72569004,123.51,123.48,0.05]
[1767029036663,7.2946,123.5,123.48,0.05]
[1767029040164,2.72301881,123.49,123.42,97.12944898]
[1767029040370,2.72301881,123.49,123.42,95.72]
[1767029041168,0.05966491,123.47,123.42,95.72]
[1767029042273,0.05966491,123.47,123.43,3.28]
[1767029045767,10.07908372,123.47,123.41,3.28]
[1767029046275,0.05966491,123.47,123.41,10.5797]
[1767029046476,0.05966491,123.47,123.42,3.28]
[1767029056178,7.35606491,123.47,123.42,3.28]
[1767029059388,2.72301881,123.44,123.4,3.2]
[1767029059684,0.05937111,123.43,123.37,3.2]
[1767029062692,7.35887111,123.43,123.37,3.2]
[1767029069697,0.05937111,123.43,123.37,10.5029]
[1767029069897,0.05937111,123.43,123.38,3.2]
[1767029073492,2.78238992,123.43,123.38,3.2]
[1767029073800,2.78238992,123.43,123.36,10.5033]
[1767029074000,0.05501384,123.41,123.36,10.5033]
[1767029074697,0.05501384,123.41,123.37,3.2]
[1767029075400,0.05501384,123.41,123.37,10.5028]
[1767029075698,0.05501384,123.41,123.38,3.2]
[1767029081196,7.2988,123.44,123.38,3.2]
[1767029081402,10.02181881,123.44,123.38,3.2]
[1767029082213,0.05407442,123.42,123.4,0.05339435]
[1767029082910,0.05407442,123.42,123.38,3.2]
[1767029083110,2.77709323,123.42,123.38,3.2]
[1767029083308,2.72301881,123.4,123.36,3.2]
[1767029083512,2.72301881,123.41,123.36,3.2]
[1767029083903,0.05721585,123.4,123.33,3.2]
[1767029084110,2.72301881,123.41,123.33,3.2]
[1767029084411,7.301,123.41,123.34,7.3047]
[1767029084602,7.301,123.41,123.35,3.2]
[1767029085111,0.06106548,123.39,123.37,0.05854289]
[1767029087715,0.00106548,123.39,123.37,3.41854289]
[1767029088814,0.00106548,123.39,123.37,10.72144289]
[1767029089030,0.00106548,123.39,123.38,3.36]
[1767029091027,2.72301881,123.44,123.38,3.36]
[1767029091406,95.76,123.45,123.38,3.36]
[1767029091616,98.48301881,123.45,123.38,3.36]
[1767029092324,0.06066411,123.43,123.4,0.05648223]
[1767029097927,0.06066411,123.43,123.4,3.59648223]
[1767029098126,0.06066411,123.43,123.4,0.05648223]
[1767029099121,0.06066411,123.43,123.4,3.59648223]
[1767029099317,0.00066411,123.43,123.4,3.59648223]
[1767029101125,113.489,123.5,123.4,3.59648223]
[1767029101126,10.08329363,123.51,123.41,3.54]
[1767029101323,6.3967236,123.5,123.41,3.54]
[1767029102030,0.0554125,123.47,123.44,0.05819844]
[1767029103526,0.0554125,123.47,123.44,3.59819844]
[1767029106925,7.2952,123.51,123.44,3.59819844]
[1767029108130,0.05426925,123.49,123.45,3.54]
[1767029108331,0.05426925,123.49,123.46,0.05159002]
[1767029109319,0.05426925,123.49,123.46,3.59159002]
[1767029110929,0.00426925,123.49,123.46,3.59159002]
[1767029115742,0.00426925,123.49,123.46,0.05159002]
[1767029116535,7.30036925,123.49,123.46,0.05159002]
[1767029118134,0.00426925,123.49,123.46,3.28159002]
[1767029138663,7.30016925,123.49,123.46,0.05159002]
[1767029138960,0.00426925,123.49,123.42,3.23]
[1767029139155,4.2602137,123.5,123.42,3.23]
[1767029139564,10.53605629,123.5,123.42,3.23]
[1767029139754,7.2966,123.48,123.42,3.23]
[1767029139952,0.0582036,123.47,123.42,3.23]
[1767029140853,7.2977,123.46,123.4,3.23]
[1767029141455,7.2985,123.45,123.4,3.23]
[1767029141663,4.2602137,123.46,123.38,3.23]
[1767029141855,10.54425512,123.46,123.41,0.05140141]
[1767029142060,0.05350782,123.43,123.41,0.05140141]
[1767029152659,0.05350782,123.43,123.37,3.22]
[1767029152864,4.2602137,123.44,123.37,3.22]
[1767029153668,0.05142862,123.42,123.39,0.05282633]
[1767029154576,2.77909097,123.42,123.39,0.05282633]
[1767029156069,10.07929097,123.42,123.39,0.05282633]
[1767029157076,7.35162862,123.42,123.39,0.05282633]
[1767029166092,0.05142862,123.42,123.39,0.05282633]
[1767029166290,0.00142862,123.42,123.39,3.50282633]
[1767029170904,2.72766235,123.41,123.39,0.05282633]
[1767029171099,2.72766235,123.41,123.37,3.45]
[1767029172200,10.02826235,123.41,123.38,0.0614825]
[1767029172403,2.72766235,123.39,123.33,3.45]
[1767029173507,0.05147113,123.37,123.33,3.45]
[1767029174709,0.05147113,123.37,123.34,3.45]
[1767029184216,0.05147113,123.37,123.33,3.33]
[1767029189925,10.02886235,123.4,123.33,3.33]
[1767029190231,7.3012,123.4,123.33,3.33]
[1767029190618,10.02956235,123.39,123.33,3.33]
[1767029190820,0.05620687,123.37,123.35,0.05420437]
[1767029193430,7.3019,123.39,123.35,3.38420437]
[1767029193620,7.3019,123.39,123.35,0.05420437]
[1767029194652,0.0543201,123.38,123.35,0.05420437]
[1767029196629,0.0543201,123.38,123.35,3.38420437]
[1767029197527,2.72766235,123.44,123.35,3.38420437]
[1767029197728,2.72766235,123.44,123.37,3.33]
[1767029198526,2.7803539,123.42,123.35,3.33]
[1767029199628,7.3006,123.41,123.37,0.05468192]
[1767029207938,108.59095598,123.46,123.37,3.74468192]
[1767029208132,6.31041595,123.45,123.37,3.69]
[1767029208838,0.05598533,123.42,123.4,0.05205517]
[1767029214244,0.05598533,123.42,123.38,3.69]
[1767029215136,7.35608533,123.42,123.35,10.03146235]
[1767029215341,7.35608533,123.42,123.39,0.05924601]
[1767029219143,0.05598533,123.42,123.39,0.05924601]
[1767029219349,7.3007,123.41,123.35,3.32]
[1767029219645,6.3186057,123.4,123.31,3.32]
[1767029220243,0.05390028,123.37,123.34,0.05227664]
[1767029223246,0.05390028,123.37,123.34,3.37227664]
[1767029227442,10.08329363,123.43,123.37,7.3026]
[1767029227637,7.299,123.44,123.38,3.32]
[1767029228141,117.77414906,123.47,123.38,10.6223]
[1767029228342,6.34437848,123.46,123.38,3.32]
[1767029228551,0.05806813,123.43,123.41,0.05674562]
[1767029229748,0.05806813,123.43,123.38,3.32]
[1767029230748,0.05806813,123.43,123.39,0.05508645]
[1767029231550,7.35756813,123.43,123.39,0.05508645]
[1767029234152,0.05806813,123.43,123.39,3.37508645]
[1767029236256,7.35776813,123.43,123.39,3.37508645]
[1767029241362,127.85744269,123.47,123.39,3.37508645]
[1767029241363,7.2984,123.45,123.39,3.37508645]
[1767029241558,7.2984,123.45,123.39,3.32]
[1767029242361,0.06172302,123.43,123.41,0.05750404]
[1767029244861,7.36122302,123.43,123.37,10.5624]
[1767029245262,7.36122302,123.43,123.38,3.26]
[1767029245958,7.36122302,123.43,123.39,0.05565054]
[1767029246760,0.06172302,123.43,123.39,0.05565054]
[1767029246961,0.06172302,123.43,123.35,3.26]
[1767029247164,117.80394906,123.44,123.35,3.26]
[1767029247560,213.56394906,123.44,123.35,3.26]
[1767029247765,7.3013,123.4,123.35,3.26]
[1767029247957,0.05756406,123.39,123.35,3.26]
[1767029250666,0.05756406,123.39,123.36,3.26]
[1767029250963,7.3006,123.41,123.36,3.26]
[1767029251854,0.05631715,123.4,123.37,0.0570099]
[1767029255069,0.05631715,123.4,123.37,3.3170099]
[1767029259575,7.35751715,123.4,123.37,0.0570099]
[1767029265877,7.3018,123.39,123.37,0.0570099]
[1767029266076,7.3018,123.39,123.35,3.26]
[1767029268577,0.05631715,123.4,123.32,103.1256]
[1767029268578,7.3025,123.38,123.33,3.14]
[1767029268772,0.05808976,123.37,123.33,3.14]
[1767029268975,0.05808976,123.37,123.29,4.26174906]
[1767029269180,113.5886,123.39,123.27,100.08174906]
[1767029269181,0.0612972,123.34,123.27,100.08174906]
[1767029269477,7.3661972,123.34,123.27,103.1284]
[1767029269694,7.3661972,123.34,123.27,7.3084]
[1767029270085,7.3054,123.33,123.26,95.82]
[1767029270293,0.05757189,123.31,123.26,95.82]
[1767029271187,0.05757189,123.31,123.27,3.14]
[1767029277201,10.03519817,123.36,123.28,3.44]
[1767029277401,10.03519817,123.36,123.29,3.44]
[1767029277789,7.3041,123.36,123.29,3.44]
[1767029278194,0.05972962,123.34,123.31,0.05676084]
[1767029280495,2.73109817,123.4,123.33,3.44]
[1767029281502,0.05964654,123.38,123.35,0.05483118]
[1767029283006,2.79074471,123.38,123.35,0.00483118]
[1767029284006,10.09334471,123.38,123.35,0.00483118]
[1767029287603,7.3031,123.37,123.35,0.00483118]
[1767029287905,2.79074471,123.38,123.3,3.44]
[1767029288103,98.53109817,123.38,123.3,3.44]
[1767029288413,2.73109817,123.36,123.3,3.44]
[1767029289012,0.05175818,123.34,123.32,0.05204108]
[1767029289706,0.05175818,123.34,123.32,0.00204108]
[1767029289897,2.78285635,123.34,123.28,3.44]
[1767029290503,10.03699817,123.32,123.26,3.44]
[1767029290909,0.06046667,123.3,123.26,3.44]
[1767029293303,0.06046667,123.3,123.22,3.44]
[1767029293504,0.06231572,123.27,123.22,3.44]
[1767029294113,113.6424,123.33,123.25,3.44]
[1767029294299,2.73109817,123.32,123.25,3.44]
[1767029294600,7.3067,123.31,123.25,3.44]
[1767029295001,0.05739718,123.29,123.27,0.05135301]
[1767029298414,10.09669535,123.29,123.22,3.42]
[1767029299013,7.3089,123.27,123.22,3.42]
[1767029299312,2.73109817,123.29,123.22,3.42]
[1767029299508,0.05784332,123.27,123.24,0.02194612]
[1767029300311,0.05784332,123.27,123.22,3.42]
[1767029303029,2.78894149,123.27,123.2,3.42]
[1767029303717,2.78894149,123.27,123.18,3.42]
[1767029303718,2.73109817,123.25,123.18,3.42]
[1767029303927,2.7881716,123.23,123.18,3.42]
[1767029304111,2.7881716,123.23,123.16,3.42]
[1767029304919,0.05707343,123.23,123.16,3.42]
[1767029305722,0.05707343,123.23,123.18,3.42]
[1767029305922,0.05470039,123.22,123.18,3.42]
[1767029306125,2.78579856,123.22,123.17,3.42]
[1767029306324,2.73109817,123.2,123.12,111.94302844]
[1767029306530,0.05212826,123.17,123.12,16.04302844]
[1767029308226,0.05212826,123.17,123.08,1.41342756]
[1767029308227,2.73109817,123.16,123.08,1.41342756]
[1767029308431,0.05696455,123.13,123.08,4.83342756]
[1767029308627,0.05696455,123.13,123.09,3.42]
[1767029310433,0.05696455,123.13,123.09,10.7391]
[1767029310635,113.7791,123.18,123.1,3.42]
[1767029310936,113.7791,123.18,123.02,3.42]
[1767029310937,121.15545173,123.14,123.02,3.42]
[1767029311132,121.15545173,123.14,123.04,10.7422]
[1767029311133,7.3166,123.14,123.04,10.7422]
[1767029311332,103.2166,123.14,123.05,3.42]
[1767029311535,0.06182194,123.11,123.08,0.05696455]
[1767029313328,95.9,123.15,123.08,0.05696455]
[1767029314426,0.05736353,123.13,123.08,0.05696455]
[1767029314829,14.65105173,123.18,123.08,3.47696455]
[1767029315023,14.65105173,123.18,123.08,3.42]
[1767029316037,0.05940956,123.14,123.12,0.05483058]
[1767029318836,209.6919,123.19,123.12,0.05483058]
[1767029318837,103.234,123.19,123.12,0.05483058]
[1767029319039,7.314,123.19,123.12,3.47483058]
[1767029319337,7.33655173,123.21,123.12,3.47483058]
[1767029319636,7.33655173,123.21,123.13,3.42]
[1767029319837,0.06059067,123.18,123.16,0.05359063]
[1767029322438,0.06059067,123.18,123.13,3.42]
[1767029323434,0.06059067,123.18,123.14,0.05782274]
[1767029326546,113.7149,123.25,123.17,3.43]
[1767029327435,0.05278857,123.22,123.2,0.05895959]
[1767029328447,7.36478857,123.22,123.17,3.43]
[1767029328649,0.05278857,123.22,123.17,3.43]
[1767029329437,7.3125,123.21,123.18,0.05814954]
[1767029330142,0.05278857,123.22,123.18,0.05814954]
[1767029330547,0.05278857,123.22,123.18,3.48814954]
[1767029330747,7.3104,123.25,123.18,3.48814954]
[1767029331747,0.05455987,123.23,123.18,99.46814954]
[1767029335151,2.79025058,123.23,123.18,0.05814954]
[1767029335351,0.05455987,123.23,123.18,0.05814954]
[1767029336250,2.73569071,123.22,123.15,95.98]
[1767029337150,0.05994833,123.2,123.17,0.05531328]
[1767029340454,0.05994833,123.2,123.17,3.31531328]
[1767029341751,7.3117,123.23,123.17,3.31531328]